fUST/lending_fUST_20260518
["ID","MTS","AMOUNT","RATE_DAILY","PERIOD"]
[422555936,1779072632000,-425.79291859,0.0001055,2]
[422555938,1779072632000,-185.0,0.0001057,2]
[422555925,1779072632000,-200.76990652,9.6e-05,2]
[422555923,1779072632000,-304.0,9.263e-05,2]
[422555921,1779072632000,-360.84145643,8.55e-05,2]
[422555919,1779072632000,-797.85458109,8.422e-05,2]
[422555917,1779072632000,-4202.14541891,8.422e-05,2]
[422555915,1779072632000,-300.0,8.421e-05,2]
[422555909,1779072632000,-2603.98317711,8.255e-05,2]
[422555913,1779072632000,-5000.0,8.338e-05,2]
[422555907,1779072632000,-1715.77398049,8.255e-05,2]
[422555905,1779072632000,-269.52946695,8.255e-05,2]
[422555898,1779072632000,-410.71337545,8.255e-05,2]
[422555931,1779072632000,-1930.12594706,0.00010172,2]
[422555911,1779072632000,-238.0,8.337e-05,2]
[422555927,1779072632000,-161.68513202,9.891e-05,2]
[422555967,1779072632000,-7416.48114865,0.00010957,2]
[422555935,1779072632000,-2468.3720099,0.00010172,2]
[422555963,1779072632000,-545.83712939,0.00010957,2]
[422555959,1779072632000,-336.141,0.0001091,2]
[422555929,1779072632000,-160.0,9.891e-05,2]
[422555957,1779072632000,-37.31603282,0.00010858,2]
[422555954,1779072632000,-553.45910941,0.00010858,2]
[422555952,1779072632000,-590.77514223,0.00010846,2]
[422555961,1779072632000,-18.47121165,0.00010957,2]
[422555949,1779072632000,-590.77514223,0.00010822,2]
[422555947,1779072632000,-590.77514225,0.0001081,2]
[422555945,1779072632000,-165.76726456,0.0001078,2]
[422555942,1779072632000,-84.89448123,0.0001069,7]
[422555940,1779072632000,-67.10551877,0.0001069,7]
[422555933,1779072632000,-531.97892194,0.00010172,2]
[422555950,1779072632000,-590.77514223,0.00010834,2]
[422555965,1779072632000,-2270.87446784,0.00010957,2]
[422556011,1779072638000,-500.0,0.00010958,2]
[422556013,1779072638000,-500.0,0.00010958,2]
[422556010,1779072638000,-500.0,0.00010958,2]
[422556014,1779072638000,-500.0,0.00010958,2]
[422556009,1779072638000,-25895.0,0.00010957,2]
[422556006,1779072638000,-1200.0,0.00010957,2]
[422556007,1779072638000,-88548.33604247,0.00010957,2]
[422556008,1779072638000,-100000.0,0.00010957,2]
[422556012,1779072638000,-3570.2279,0.00010958,2]
[422556016,1779072638000,-500.0,0.00010958,2]
[422556022,1779072638000,-2419.41,0.00010958,2]
[422556017,1779072638000,-500.0,0.00010958,2]
[422556023,1779072638000,-500.0,0.00010958,2]
[422556024,1779072638000,-742.3,0.00010958,2]
[422556025,1779072638000,-500.0,0.00010958,2]
[422556026,1779072638000,-500.0,0.00010958,2]
[422556015,1779072638000,-500.0,0.00010958,2]
[422556020,1779072638000,-500.0,0.00010958,2]
[422556019,1779072638000,-583.00913812,0.00010958,2]
[422556018,1779072638000,-500.0,0.00010958,2]
[422556021,1779072638000,-500.0,0.00010958,2]
[422556062,1779072639000,-665.05,0.00010958,2]
[422556064,1779072639000,-500.0,0.00010958,2]
[422556058,1779072639000,-502.24,0.00010958,2]
[422556068,1779072639000,-500.0,0.00010958,2]
[422556059,1779072639000,-500.0,0.00010958,2]
[422556065,1779072639000,-715.37,0.00010958,2]
[422556067,1779072639000,-500.0,0.00010958,2]
[422556063,1779072639000,-500.0,0.00010958,2]
[422556060,1779072639000,-2355.1,0.00010958,2]
[422556066,1779072639000,-534.96403914,0.00010958,2]
[422556061,1779072639000,-500.0,0.00010958,2]
[422556069,1779072639000,-500.0,0.00010958,2]
[422556081,1779072639000,-501.25903812,0.00010958,2]
[422556071,1779072639000,-1154.66,0.00010958,2]
[422556074,1779072639000,-500.0,0.00010958,2]
[422556073,1779072639000,-500.0,0.00010958,2]
[422556057,1779072639000,-500.0,0.00010958,2]
[422556070,1779072639000,-500.0,0.00010958,2]
[422556076,1779072639000,-500.0,0.00010958,2]
[422556080,1779072639000,-500.0,0.00010958,2]
[422556075,1779072639000,-500.0,0.00010958,2]
[422556082,1779072639000,-500.0,0.00010958,2]
[422556078,1779072639000,-963.52,0.00010958,2]
[422556077,1779072639000,-500.0,0.00010958,2]
[422556079,1779072639000,-274.15662716,0.00010958,2]
[422556083,1779072639000,-814.02,0.00010958,2]
[422556072,1779072639000,-1550.97,0.00010958,2]
[422556052,1779072639000,-500.0,0.00010958,2]
[422556048,1779072639000,-1326.83,0.00010958,2]
[422556053,1779072639000,-743.18,0.00010958,2]
[422556084,1779072639000,-715.05,0.00010958,2]
[422556027,1779072639000,-676.75,0.00010958,2]
[422556029,1779072639000,-1785.1128,0.00010958,2]
[422556028,1779072639000,-500.0,0.00010958,2]
[422556030,1779072639000,-866.65,0.00010958,2]
[422556032,1779072639000,-696.48,0.00010958,2]
[422556042,1779072639000,-663.15,0.00010958,2]
[422556043,1779072639000,-500.0,0.00010958,2]
[422556031,1779072639000,-730.81,0.00010958,2]
[422556038,1779072639000,-500.0,0.00010958,2]
[422556039,1779072639000,-500.0,0.00010958,2]
[422556036,1779072639000,-500.0,0.00010958,2]
[422556035,1779072639000,-500.0,0.00010958,2]
[422556033,1779072639000,-500.0,0.00010958,2]
[422556034,1779072639000,-697.41,0.00010958,2]
[422556037,1779072639000,-500.0,0.00010958,2]
[422556041,1779072639000,-500.0,0.00010958,2]
[422556040,1779072639000,-500.0,0.00010958,2]
[422556045,1779072639000,-1018.71,0.00010958,2]
[422556055,1779072639000,-500.0,0.00010958,2]
[422556056,1779072639000,-2301.13,0.00010958,2]
[422556044,1779072639000,-856.7,0.00010958,2]
[422556047,1779072639000,-2138.96,0.00010958,2]
[422556046,1779072639000,-500.0,0.00010958,2]
[422556049,1779072639000,-500.0,0.00010958,2]
[422556051,1779072639000,-500.0,0.00010958,2]
[422556050,1779072639000,-616.56,0.00010958,2]
[422556054,1779072639000,-614.03,0.00010958,2]
[422556095,1779072639000,-933.5,0.00010958,2]
[422556115,1779072639000,-1535.45,0.00010958,2]
[422556087,1779072639000,-501.39743945,0.00010958,2]
[422556117,1779072639000,-500.0,0.00010958,2]
[422556118,1779072639000,-500.60896272,0.00010958,2]
[422556122,1779072639000,-516.72,0.00010958,2]
[422556123,1779072639000,-597.44,0.00010958,2]
[422556121,1779072639000,-1364.53,0.00010958,2]
[422556125,1779072639000,-501.01889459,0.00010958,2]
[422556124,1779072639000,-885.8,0.00010958,2]
[422556126,1779072639000,-500.98730925,0.00010958,2]
[422556127,1779072639000,-500.0,0.00010958,2]
[422556128,1779072639000,-662.61,0.00010958,2]
[422556130,1779072639000,-1461.18,0.00010958,2]
[422556139,1779072639000,-789.69,0.00010958,2]
[422556144,1779072639000,-500.0,0.00010958,2]
[422556132,1779072639000,-1852.9,0.00010958,2]
[422556134,1779072639000,-500.85772331,0.00010958,2]
[422556133,1779072639000,-500.0,0.00010958,2]
[422556131,1779072639000,-501.03332313,0.00010958,2]
[422556138,1779072639000,-500.0,0.00010958,2]
[422556137,1779072639000,-500.94359605,0.00010958,2]
[422556136,1779072639000,-500.0,0.00010958,2]
[422556141,1779072639000,-708.02,0.00010958,2]
[422556143,1779072639000,-500.7707333,0.00010958,2]
[422556142,1779072639000,-500.87436484,0.00010958,2]
[422556140,1779072639000,-865.73,0.00010958,2]
[422556145,1779072639000,-642.34,0.00010958,2]
[422556096,1779072639000,-500.0,0.00010958,2]
[422556129,1779072639000,-229.99723034,0.00010958,2]
[422556109,1779072639000,-500.0,0.00010958,2]
[422556135,1779072639000,-2475.17,0.00010958,2]
[422556114,1779072639000,-500.0,0.00010958,2]
[422556116,1779072639000,-4673.83,0.00010958,2]
[422556086,1779072639000,-786.13,0.00010958,2]
[422556094,1779072639000,-501.25202164,0.00010958,2]
[422556085,1779072639000,-500.0,0.00010958,2]
[422556092,1779072639000,-1582.63,0.00010958,2]
[422556088,1779072639000,-500.0,0.00010958,2]
[422556093,1779072639000,-500.0,0.00010958,2]
[422556091,1779072639000,-1106.21,0.00010958,2]
[422556090,1779072639000,-396.48169656,0.00010958,2]
[422556097,1779072639000,-1741.15,0.00010958,2]
[422556098,1779072639000,-500.0,0.00010958,2]
[422556107,1779072639000,-500.0,0.00010958,2]
[422556100,1779072639000,-500.0,0.00010958,2]
[422556099,1779072639000,-500.0,0.00010958,2]
[422556089,1779072639000,-968.0,0.00010958,2]
[422556101,1779072639000,-500.0,0.00010958,2]
[422556119,1779072639000,-500.9494574,0.00010958,2]
[422556112,1779072639000,-983.49,0.00010958,2]
[422556113,1779072639000,-500.0,0.00010958,2]
[422556110,1779072639000,-1020.35,0.00010958,2]
[422556111,1779072639000,-821.3,0.00010958,2]
[422556108,1779072639000,-500.0,0.00010958,2]
[422556120,1779072639000,-502.58026254,0.00010958,2]
[422556104,1779072639000,-4812.66,0.00010958,2]
[422556105,1779072639000,-500.0,0.00010958,2]
[422556102,1779072639000,-2229.95,0.00010958,2]
[422556103,1779072639000,-691.92,0.00010958,2]
[422556106,1779072639000,-1155.69,0.00010958,2]
[422556192,1779072640000,-500.0,0.00010958,2]
[422556186,1779072640000,-542.53,0.00010958,2]
[422556185,1779072640000,-500.0,0.00010958,2]
[422556187,1779072640000,-1871.3,0.00010958,2]
[422556184,1779072640000,-501.53422302,0.00010958,2]
[422556189,1779072640000,-500.0,0.00010958,2]
[422556182,1779072640000,-1038.94,0.00010958,2]
[422556183,1779072640000,-500.88871644,0.00010958,2]
[422556180,1779072640000,-534.03,0.00010958,2]
[422556191,1779072640000,-500.0,0.00010958,2]
[422556181,1779072640000,-500.0,0.00010958,2]
[422556174,1779072640000,-502.88307545,0.00010958,2]
[422556188,1779072640000,-500.0,0.00010958,2]
[422556190,1779072640000,-500.81512178,0.00010958,2]
[422556206,1779072640000,-500.0,0.00010958,2]
[422556195,1779072640000,-500.0,0.00010958,2]
[422556196,1779072640000,-531.66,0.00010958,2]
[422556204,1779072640000,-500.0,0.00010958,2]
[422556198,1779072640000,-500.0,0.00010958,2]
[422556197,1779072640000,-2444.15,0.00010958,2]
[422556205,1779072640000,-500.0,0.00010958,2]
[422556194,1779072640000,-500.0,0.00010958,2]
[422556201,1779072640000,-1704.25,0.00010958,2]
[422556199,1779072640000,-500.0,0.00010958,2]
[422556202,1779072640000,-500.0,0.00010958,2]
[422556203,1779072640000,-12154.67,0.00010958,2]
[422556200,1779072640000,-583.3807048,0.00010958,2]
[422556179,1779072640000,-500.0,0.00010958,2]
[422556193,1779072640000,-505.5822842,0.00010958,2]
[422556175,1779072640000,-500.0,0.00010958,2]
[422556146,1779072640000,-290.86894003,0.00010958,2]
[422556176,1779072640000,-1121.86,0.00010958,2]
[422556151,1779072640000,-795.13,0.00010958,2]
[422556208,1779072640000,-500.0,0.00010958,2]
[422556147,1779072640000,-1253.58,0.00010958,2]
[422556148,1779072640000,-588.98,0.00010958,2]
[422556150,1779072640000,-1600.02,0.00010958,2]
[422556149,1779072640000,-481.68869004,0.00010958,2]
[422556153,1779072640000,-1218.88,0.00010958,2]
[422556163,1779072640000,-636.42,0.00010958,2]
[422556164,1779072640000,-1626.86,0.00010958,2]
[422556155,1779072640000,-501.2877249,0.00010958,2]
[422556165,1779072640000,-500.91550661,0.00010958,2]
[422556152,1779072640000,-500.0,0.00010958,2]
[422556154,1779072640000,-4729.66,0.00010958,2]
[422556178,1779072640000,-1698.35,0.00010958,2]
[422556156,1779072640000,-501.32187668,0.00010958,2]
[422556157,1779072640000,-501.0585238,0.00010958,2]
[422556161,1779072640000,-840.48,0.00010958,2]
[422556160,1779072640000,-500.9165544,0.00010958,2]
[422556159,1779072640000,-773.35,0.00010958,2]
[422556162,1779072640000,-500.0,0.00010958,2]
[422556166,1779072640000,-500.0,0.00010958,2]
[422556170,1779072640000,-670.73,0.00010958,2]
[422556168,1779072640000,-500.0,0.00010958,2]
[422556172,1779072640000,-500.0,0.00010958,2]
[422556169,1779072640000,-490.73038568,0.00010958,2]
[422556167,1779072640000,-4890.58,0.00010958,2]
[422556177,1779072640000,-502.22565021,0.00010958,2]
[422556171,1779072640000,-500.0,0.00010958,2]
[422556158,1779072640000,-2864.38,0.00010958,2]
[422556219,1779072640000,-500.0,0.00010958,2]
[422556173,1779072640000,-412.90731828,0.00010958,2]
[422556220,1779072640000,-4193.8,0.00010958,2]
[422556246,1779072640000,-3659.88,0.00010958,2]
[422556270,1779072640000,-598.71,0.00010958,2]
[422556240,1779072640000,-500.0,0.00010958,2]
[422556248,1779072640000,-538.94725385,0.00010958,2]
[422556241,1779072640000,-1337.51,0.00010958,2]
[422556247,1779072640000,-3396.41,0.00010958,2]
[422556251,1779072640000,-4003.74,0.00010958,2]
[422556250,1779072640000,-953.9,0.00010958,2]
[422556254,1779072640000,-500.0,0.00010958,2]
[422556252,1779072640000,-989.32,0.00010958,2]
[422556255,1779072640000,-500.0,0.00010958,2]
[422556253,1779072640000,-500.0,0.00010958,2]
[422556249,1779072640000,-756.69,0.00010958,2]
[422556238,1779072640000,-500.0,0.00010958,2]
[422556256,1779072640000,-500.0,0.00010958,2]
[422556266,1779072640000,-9768.78,0.00010958,2]
[422556264,1779072640000,-1717.74,0.00010958,2]
[422556260,1779072640000,-14190.79,0.00010958,2]
[422556261,1779072640000,-500.0,0.00010958,2]
[422556265,1779072640000,-2335.4,0.00010958,2]
[422556259,1779072640000,-1447.35,0.00010958,2]
[422556267,1779072640000,-500.0,0.00010958,2]
[422556263,1779072640000,-8291.0,0.00010958,2]
[422556262,1779072640000,-500.0,0.00010958,2]
[422556269,1779072640000,-500.0,0.00010958,2]
[422556268,1779072640000,-962.71,0.00010958,2]
[422556271,1779072640000,-755.25,0.00010958,2]
[422556218,1779072640000,-500.0,0.00010958,2]
[422556257,1779072640000,-4185.51,0.00010958,2]
[422556239,1779072640000,-8383.89,0.00010958,2]
[422556258,1779072640000,-500.0,0.00010958,2]
[422556237,1779072640000,-1435.75,0.00010958,2]
[422556245,1779072640000,-500.0,0.00010958,2]
[422556207,1779072640000,-500.0,0.00010958,2]
[422556210,1779072640000,-2503.05,0.00010958,2]
[422556212,1779072640000,-1412.99,0.00010958,2]
[422556209,1779072640000,-500.0,0.00010958,2]
[422556214,1779072640000,-1129.6,0.00010958,2]
[422556215,1779072640000,-5339.5,0.00010958,2]
[422556213,1779072640000,-500.0,0.00010958,2]
[422556216,1779072640000,-500.0,0.00010958,2]
[422556217,1779072640000,-500.0,0.00010958,2]
[422556222,1779072640000,-500.0,0.00010958,2]
[422556224,1779072640000,-890.98,0.00010958,2]
[422556221,1779072640000,-500.0,0.00010958,2]
[422556228,1779072640000,-500.0,0.00010958,2]
[422556211,1779072640000,-2499.12,0.00010958,2]
[422556226,1779072640000,-4825.37,0.00010958,2]
[422556236,1779072640000,-500.0,0.00010958,2]
[422556229,1779072640000,-850.61,0.00010958,2]
[422556243,1779072640000,-4156.46,0.00010958,2]
[422556244,1779072640000,-500.0,0.00010958,2]
[422556242,1779072640000,-1137.17,0.00010958,2]
[422556233,1779072640000,-500.0,0.00010958,2]
[422556234,1779072640000,-3848.41,0.00010958,2]
[422556235,1779072640000,-500.0,0.00010958,2]
[422556232,1779072640000,-4846.18,0.00010958,2]
[422556227,1779072640000,-646.97,0.00010958,2]
[422556223,1779072640000,-1081.05,0.00010958,2]
[422556231,1779072640000,-722.08,0.00010958,2]
[422556225,1779072640000,-500.0,0.00010958,2]
[422556230,1779072640000,-500.0,0.00010958,2]
[422556279,1779072641000,-12461.43,0.00010958,2]
[422556284,1779072641000,-5549.22,0.00010958,2]
[422556283,1779072641000,-520.39,0.00010958,2]
[422556285,1779072641000,-500.0,0.00010958,2]
[422556280,1779072641000,-2664.18,0.00010958,2]
[422556281,1779072641000,-4151.14,0.00010958,2]
[422556290,1779072641000,-500.0,0.00010958,2]
[422556276,1779072641000,-423.0323499,0.00010958,2]
[422556272,1779072641000,-500.0,0.00010958,2]
[422556277,1779072641000,-2510.64,0.00010958,2]
[422556275,1779072641000,-3062.41,0.00010958,2]
[422556273,1779072641000,-64429.22,0.00010958,2]
[422556274,1779072641000,-477.69811269,0.00010958,2]
[422556291,1779072641000,-1316.17,0.00010958,2]
[422556278,1779072641000,-945.32,0.00010958,2]
[422556282,1779072641000,-500.0,0.00010958,2]
[422556299,1779072641000,-1115.1,0.00010958,2]
[422556289,1779072641000,-500.0,0.00010958,2]
[422556304,1779072641000,-500.0,0.00010958,2]
[422556305,1779072641000,-2587.68851693,0.00010958,2]
[422556303,1779072641000,-1570.87,0.00010958,2]
[422556298,1779072641000,-512.25,0.00010958,2]
[422556300,1779072641000,-5419.56,0.00010958,2]
[422556301,1779072641000,-500.0,0.00010958,2]
[422556286,1779072641000,-500.0,0.00010958,2]
[422556302,1779072641000,-9652.53,0.00010958,2]
[422556297,1779072641000,-330.17636543,0.00010958,2]
[422556294,1779072641000,-500.0,0.00010958,2]
[422556295,1779072641000,-2903.84,0.00010958,2]
[422556293,1779072641000,-502.32,0.00010958,2]
[422556292,1779072641000,-741.51,0.00010958,2]
[422556288,1779072641000,-500.0,0.00010958,2]
[422556287,1779072641000,-500.0,0.00010958,2]
[422556296,1779072641000,-3415.91,0.00010958,2]
[422556313,1779072644000,-152.0,0.0001024,7]
[422556315,1779072644000,-1191.30148307,0.00010958,2]
[422556320,1779072644000,-1789.21125237,0.00010958,2]
[422556316,1779072644000,-1408.17424119,0.00010958,2]
[422556314,1779072644000,-165.76726456,0.0001078,2]
[422556319,1779072644000,-1293.54575881,0.00010958,2]
[422556343,1779072647000,-368.1946,0.00010958,2]
[422556327,1779072647000,-4229.56,0.00010958,2]
[422556324,1779072647000,-165.76726456,0.0001078,2]
[422556326,1779072647000,-500.0,0.00010958,2]
[422556329,1779072647000,-500.0,0.00010958,2]
[422556331,1779072647000,-500.77458078,0.00010958,2]
[422556328,1779072647000,-500.0,0.00010958,2]
[422556332,1779072647000,-1887.36,0.00010958,2]
[422556325,1779072647000,-2043.00874763,0.00010958,2]
[422556330,1779072647000,-686.08,0.00010958,2]
[422556336,1779072647000,-500.0,0.00010958,2]
[422556335,1779072647000,-320.0,0.00010958,2]
[422556334,1779072647000,-3935.70614028,0.00010958,2]
[422556338,1779072647000,-500.0,0.00010958,2]
[422556337,1779072647000,-500.0,0.00010958,2]
[422556339,1779072647000,-2146.55,0.00010958,2]
[422556340,1779072647000,-595.39,0.00010958,2]
[422556341,1779072647000,-9416.21,0.00010958,2]
[422556342,1779072647000,-906.75366147,0.00010958,2]
[422556333,1779072647000,-1070.13385972,0.00010958,2]
[422556345,1779072846000,3449.6086925,0.00017808,120]
[422556517,1779073833000,-377.79288211,9.75e-05,2]
[422556507,1779073833000,-1980.1863641,9.75e-05,2]
[422556524,1779073833000,-281.4021887,9.999e-05,2]
[422556526,1779073833000,-23180.83678724,0.0001,2]
[422556515,1779073833000,-1309.63662955,9.75e-05,2]
[422556522,1779073833000,-1027.92432912,9.75e-05,2]
[422556528,1779073833000,-10920.22962409,0.0001,2]
[422556520,1779073833000,-304.45979512,9.75e-05,2]
[422556546,1779073837000,-1576.77527499,0.0001,2]
[422556547,1779073838000,-575.8249803,0.0001,2]
[422556568,1779073845000,-628.78756458,0.0001,2]
[422556564,1779073845000,-514.25379995,0.0001,2]
[422556566,1779073845000,-1297.21331,0.0001,2]
[422556559,1779073845000,-3634.422095,0.0001,2]
[422556555,1779073845000,-612.47728457,0.0001,2]
[422556554,1779073845000,-1138.6561168,0.0001,2]
[422556651,1779073846000,-5382.18038514,0.00010304,2]
[422556649,1779073846000,-351.38668135,0.00010048,2]
[422556648,1779073846000,-3929.21594542,0.0001,2]
[422556650,1779073846000,-180.93468634,0.00010303,2]
[422556647,1779073846000,-958.5,0.0001,2]
[422556646,1779073846000,-27668.21679297,0.0001,2]
[422556622,1779073846000,-5753.5512054,0.0001,2]
[422556729,1779075031000,-669.85014291,9.321e-05,2]
[422556852,1779075038000,-350.51130189,9.619e-05,2]
[422556874,1779075038000,-356.47482412,0.000108,2]
[422556875,1779075038000,-332.31101751,0.00010858,2]
[422556873,1779075038000,-229.2364483,0.000108,2]
[422556878,1779075038000,-4600.685,0.00010958,2]
[422556879,1779075038000,-1341.8657,0.00010958,2]
[422556889,1779075038000,-500.0,0.00010958,2]
[422556885,1779075038000,-500.0,0.00010958,2]
[422556881,1779075038000,-500.0,0.00010958,2]
[422556882,1779075038000,-500.0,0.00010958,2]
[422556888,1779075038000,-500.62577272,0.00010958,2]
[422556886,1779075038000,-1814.16,0.00010958,2]
[422556880,1779075038000,-500.0,0.00010958,2]
[422556884,1779075038000,-500.0,0.00010958,2]
[422556887,1779075038000,-500.0,0.00010958,2]
[422556883,1779075038000,-532.61,0.00010958,2]
[422556898,1779075038000,-500.0,0.00010958,2]
[422556891,1779075038000,-500.0,0.00010958,2]
[422556899,1779075038000,-500.17713438,0.00010958,2]
[422556894,1779075038000,-502.98908529,0.00010958,2]
[422556876,1779075038000,-349.121,0.000109,2]
[422556877,1779075038000,-10613.05216888,0.000109,2]
[422556872,1779075038000,-1133.76462838,0.000108,2]
[422556869,1779075038000,-2413.56311653,0.000108,2]
[422556851,1779075038000,-4330.14985709,9.321e-05,2]
[422556853,1779075038000,-394384.18499842,9.8e-05,2]
[422556850,1779075038000,-5000.0,9.228e-05,2]
[422556854,1779075038000,-593026.48971811,9.9e-05,2]
[422556856,1779075038000,-332.31101752,0.00010004,2]
[422556859,1779075038000,-3563.4477311,0.00010278,2]
[422556857,1779075038000,-493.1298013,0.00010104,2]
[422556858,1779075038000,-332.31101751,0.00010218,2]
[422556861,1779075038000,-271.30219061,0.000105,2]
[422556890,1779075038000,-540.76,0.00010958,2]
[422556866,1779075038000,-160.0,0.00010745,2]
[422556863,1779075038000,-152.0,0.00010559,7]
[422556862,1779075038000,-185.0,0.00010555,2]
[422556864,1779075038000,-332.31101751,0.00010645,2]
[422556855,1779075038000,-349471.61413938,9.9e-05,2]
[422556865,1779075038000,-161.68513202,0.00010745,2]
[422556868,1779075038000,-493.16724481,0.000108,2]
[422556867,1779075038000,-401.34204468,0.0001078,2]
[422556871,1779075038000,-1774.36201195,0.000108,2]
[422556870,1779075038000,-1568.56597125,0.000108,2]
[422556860,1779075038000,-332.31101751,0.00010431,2]
[422556902,1779075038000,-500.23816581,0.00010958,2]
[422556932,1779075038000,-500.7723669,0.00010958,2]
[422556897,1779075038000,-500.0,0.00010958,2]
[422556918,1779075038000,-640.86123793,0.00010958,2]
[422556923,1779075038000,-561.21251426,0.00010958,2]
[422556917,1779075038000,-500.0,0.00010958,2]
[422556925,1779075038000,-500.10341222,0.00010958,2]
[422556929,1779075038000,-500.0,0.00010958,2]
[422556926,1779075038000,-472.88198013,0.00010958,2]
[422556927,1779075038000,-500.0,0.00010958,2]
[422556928,1779075038000,-500.17738603,0.00010958,2]
[422556939,1779075038000,-500.0,0.00010958,2]
[422556924,1779075038000,-500.0,0.00010958,2]
[422556930,1779075038000,-500.0,0.00010958,2]
[422556933,1779075038000,-500.43911756,0.00010958,2]
[422556931,1779075038000,-500.0,0.00010958,2]
[422556935,1779075038000,-538.55116179,0.00010958,2]
[422556942,1779075038000,-848.98,0.00010958,2]
[422556934,1779075038000,-500.0,0.00010958,2]
[422556936,1779075038000,-500.96215494,0.00010958,2]
[422556940,1779075038000,-1407.87,0.00010958,2]
[422556938,1779075038000,-1110.62,0.00010958,2]
[422556896,1779075038000,-500.0,0.00010958,2]
[422556937,1779075038000,-500.0,0.00010958,2]
[422556920,1779075038000,-412.45363609,0.00010958,2]
[422556941,1779075038000,-500.15148541,0.00010958,2]
[422556919,1779075038000,-500.16009328,0.00010958,2]
[422556893,1779075038000,-500.28963102,0.00010958,2]
[422556922,1779075038000,-500.0,0.00010958,2]
[422556901,1779075038000,-500.0,0.00010958,2]
[422556892,1779075038000,-500.23661616,0.00010958,2]
[422556895,1779075038000,-530.34,0.00010958,2]
[422556903,1779075038000,-500.0,0.00010958,2]
[422556906,1779075038000,-500.19014024,0.00010958,2]
[422556910,1779075038000,-500.98485287,0.00010958,2]
[422556905,1779075038000,-500.3327274,0.00010958,2]
[422556907,1779075038000,-500.0,0.00010958,2]
[422556900,1779075038000,-500.37081251,0.00010958,2]
[422556911,1779075038000,-500.0,0.00010958,2]
[422556908,1779075038000,-500.37684849,0.00010958,2]
[422556912,1779075038000,-500.0,0.00010958,2]
[422556904,1779075038000,-500.0,0.00010958,2]
[422556909,1779075038000,-500.0,0.00010958,2]
[422556914,1779075038000,-1374.95,0.00010958,2]
[422556915,1779075038000,-874.69,0.00010958,2]
[422556913,1779075038000,-501.7159132,0.00010958,2]
[422556916,1779075038000,-500.0,0.00010958,2]
[422556921,1779075038000,-500.0,0.00010958,2]
[422556987,1779075039000,-502.25568109,0.00010958,2]
[422556981,1779075039000,-500.0,0.00010958,2]
[422556980,1779075039000,-377.50065535,0.00010958,2]
[422556978,1779075039000,-500.0,0.00010958,2]
[422556982,1779075039000,-835.4,0.00010958,2]
[422556976,1779075039000,-500.0,0.00010958,2]
[422556979,1779075039000,-500.0,0.00010958,2]
[422556984,1779075039000,-500.83022258,0.00010958,2]
[422556985,1779075039000,-500.0,0.00010958,2]
[422556999,1779075039000,-500.0,0.00010958,2]
[422556977,1779075039000,-500.0,0.00010958,2]
[422556983,1779075039000,-500.0,0.00010958,2]
[422556998,1779075039000,-151.19375335,0.00010958,2]
[422556991,1779075039000,-500.82148676,0.00010958,2]
[422556986,1779075039000,-500.0,0.00010958,2]
[422556988,1779075039000,-500.0,0.00010958,2]
[422556996,1779075039000,-500.62104037,0.00010958,2]
[422556995,1779075039000,-501.01134834,0.00010958,2]
[422556993,1779075039000,-2375.36,0.00010958,2]
[422556994,1779075039000,-500.0,0.00010958,2]
[422556992,1779075039000,-500.0,0.00010958,2]
[422556990,1779075039000,-1257.12,0.00010958,2]
[422557001,1779075039000,-500.0,0.00010958,2]